fUST/lending_fUST_20251105
["ID","MTS","AMOUNT","RATE_DAILY","PERIOD"]
[393117138,1762277650239,-3342.65,0.00046027,120]
[393117140,1762277650274,-500.0,0.00046027,120]
[393117142,1762277650313,-500.0,0.00046027,120]
[393117144,1762277650347,-500.0,0.00046027,120]
[393117146,1762277650379,-500.0,0.00046027,120]
[393117148,1762277650413,-500.0,0.00046027,120]
[393117150,1762277650443,-500.0,0.00046027,120]
[393117152,1762277650474,-500.0,0.00046027,120]
[393117154,1762277650505,-500.0,0.00046027,120]
[393117156,1762277650536,-500.0,0.00046027,120]
[393117158,1762277650566,-500.0,0.00046027,120]
[393117160,1762277650597,-1000.0,0.00046301,90]
[393117161,1762277650628,-1007.0,0.000464,41]
[393117163,1762277650658,-500.0,0.00046575,120]
[393117165,1762277650688,-500.0,0.00046575,120]
[393117167,1762277650717,-500.0,0.00046575,120]
[393117169,1762277650747,-500.0,0.00046575,120]
[393117171,1762277650776,-500.0,0.00046575,120]
[393117173,1762277650810,-597.06,0.00046575,120]
[393117174,1762277650846,-500.0,0.00046575,120]
[393117176,1762277650880,-500.0,0.00046575,120]
[393117178,1762277650912,-1470.35,0.00046575,40]
[393117180,1762277650944,-500.0,0.00046575,120]
[393117182,1762277650974,-500.0,0.00046575,120]
[393117184,1762277651004,-500.0,0.00046575,120]
[393117186,1762277651037,-515.83302717,0.00046575,120]
[393117188,1762277651068,-500.0,0.00046575,120]
[393117190,1762277651100,-654.9,0.00046575,120]
[393117192,1762277651130,-500.0,0.00046575,120]
[393117194,1762277651160,-1067.53,0.00046575,120]
[393117196,1762277651191,-500.0,0.00046575,120]
[393117197,1762277651221,-500.0,0.00046575,120]
[393117199,1762277651252,-3208.33,0.00046575,120]
[393117201,1762277651286,-500.0,0.00046575,120]
[393117203,1762277651316,-500.0,0.00046575,120]
[393117205,1762277651347,-500.0,0.00046575,120]
[393117207,1762277651379,-500.0,0.00046575,120]
[393117209,1762277651411,-272.79408339,0.00046575,120]
[393117211,1762277651440,-500.0,0.00046575,120]
[393117213,1762277651471,-584.233591,0.00046575,120]
[393117215,1762277651500,-500.0,0.00046575,120]
[393117217,1762277651534,-500.0,0.00046575,120]
[393117219,1762277651564,-500.0,0.00046575,120]
[393117221,1762277651595,-618.28,0.00046575,120]
[393117223,1762277651624,-500.0,0.00046575,120]
[393117225,1762277651656,-500.0,0.00046575,120]
[393117226,1762277651688,-500.0,0.00046575,120]
[393117228,1762277651722,-392.26006684,0.00046575,120]
[393117230,1762277651754,-229.66788593,0.00046575,120]
[393117232,1762277651789,-500.0,0.00046575,120]
[393117234,1762277651823,-500.0,0.00046575,120]
[393117236,1762277651860,-2466.08,0.00046575,120]
[393117238,1762277651894,-500.0,0.00046575,120]
[393117242,1762277652012,-500.0,0.00046575,120]
[393117244,1762277652044,-288.04,0.00046575,120]
[393117245,1762277652078,-500.0,0.00046575,120]
[393117247,1762277652119,-500.0,0.00046575,120]
[393117249,1762277652158,-500.0,0.00046575,120]
[393117252,1762277652199,-6629.83,0.00046575,120]
[393117253,1762277652241,-500.0,0.00046575,120]
[393117256,1762277652286,-500.0,0.00046575,120]
[393117257,1762277652328,-500.0,0.00046575,120]
[393117259,1762277652367,-500.0,0.00046575,120]
[393117261,1762277652405,-500.0,0.00046575,120]
[393117264,1762277652442,-500.0,0.00046575,120]
[393117265,1762277652479,-500.0,0.00046575,120]
[393117267,1762277652516,-500.0,0.00046575,120]
[393117269,1762277652558,-500.0,0.00046575,120]
[393117271,1762277652593,-272.39043724,0.00046575,120]
[393117273,1762277652629,-500.0,0.00046575,120]
[393117275,1762277652663,-500.0,0.00046575,120]
[393117277,1762277652696,-500.0,0.00046575,120]
[393117279,1762277652728,-500.0,0.00046575,120]
[393117281,1762277652763,-500.0,0.00046575,120]
[393117283,1762277652796,-735.65,0.00046575,120]
[393117285,1762277652831,-500.0,0.00046575,120]
[393117287,1762277652866,-670.62,0.00046575,120]
[393117289,1762277652900,-500.0,0.00046575,120]
[393117291,1762277652931,-538.59213358,0.00046575,120]
[393117293,1762277652962,-1324.79,0.00046575,120]
[393117295,1762277652993,-500.0,0.00046575,120]
[393117297,1762277653023,-500.0,0.00046575,120]
[393117298,1762277653060,-809.22,0.00046575,120]
[393117300,1762277653093,-500.0,0.00046575,120]
[393117302,1762277653127,-500.0,0.00046575,120]
[393117304,1762277653161,-704.56,0.00046575,60]
[393117305,1762277653195,-500.0,0.00046575,120]
[393117306,1762277653230,-500.0,0.00046575,120]
[393117307,1762277653264,-856.54,0.00046575,120]
[393117308,1762277653298,-500.0,0.00046575,120]
[393117309,1762277653338,-500.0,0.00046575,120]
[393117310,1762277653374,-1428.27,0.00046575,120]
[393117311,1762277653409,-500.0,0.00046575,120]
[393117312,1762277653442,-500.0,0.00046575,120]
[393117314,1762277653474,-1374.06,0.00046575,120]
[393117316,1762277653504,-769.28,0.00046575,120]
[393117318,1762277653537,-11325.38,0.00046575,120]
[393117320,1762277653566,-3342.65,0.00046575,120]
[393117322,1762277653594,-500.0,0.00046575,120]
[393117324,1762277653623,-500.0,0.00046575,120]
[393117326,1762277653654,-500.0,0.00046575,120]
[393117328,1762277653684,-500.0,0.00046575,120]
[393117329,1762277653713,-500.0,0.00046575,120]
[393117331,1762277653746,-500.0,0.00046575,120]
[393117333,1762277653778,-500.0,0.00046575,120]
[393117336,1762277653818,-500.0,0.00046575,120]
[393117338,1762277653852,-500.0,0.00046575,120]
[393117345,1762277654091,210.34195256,0.00044931,120]
[393117348,1762277654150,151.0,0.00043835,120]
[393117350,1762277654194,152.47865491,0.0004126,60]
[393117353,1762277654262,151.0,0.00044383,120]
[393117355,1762277654308,151.0,0.00044931,120]
[393117357,1762277654355,151.0,0.00045,120]
[393117360,1762277654400,151.0,0.00043835,120]
[393117365,1762277654557,480.0,0.00043835,120]
[393117371,1762277654731,287.53353545,0.00037627,30]
[393117376,1762277654867,151.0,0.00043835,120]
[393117381,1762277655023,151.0,0.00043835,120]
[393117383,1762277655069,151.0,0.00044383,120]
[393117385,1762277655118,480.0,0.00043835,120]
[393117387,1762277655156,151.0,0.00044931,120]
[393117389,1762277655193,151.0,0.00045,120]
[393117392,1762277655230,193.494895,0.00037642,31]
[393117394,1762277655266,151.0,0.00043835,120]
[393117396,1762277655313,151.0,0.00043835,120]
[393117398,1762277655351,151.0,0.00044383,120]
[393117400,1762277655404,151.0,0.00044931,120]
[393117403,1762277655460,151.0,0.00045,120]
[393117405,1762277655497,399.46520389,0.00045,120]
[393117407,1762277655536,399.46520389,0.00046,30]
[393117412,1762277655715,151.0,0.00043835,120]
[393117415,1762277655758,151.0,0.00037642,31]
[393117417,1762277655794,151.0,0.00043835,120]
[393117419,1762277655834,151.0,0.00043835,120]
[393117421,1762277655870,151.0,0.00044383,120]
[393117423,1762277655906,151.0,0.00043835,120]
[393117425,1762277655942,156.439995,0.00043835,120]
[393117427,1762277655978,151.0,0.00044931,120]
[393117429,1762277656014,156.869018,0.00044383,120]
[393117432,1762277656082,151.0,0.00045,120]
[393117434,1762277656119,151.0,0.00043835,120]
[393117436,1762277656159,151.0,0.00043835,120]
[393117439,1762277656199,200.571628,0.00044383,120]
[393117441,1762277656262,500.0,0.00043835,120]
[393117444,1762277656326,186.33,0.00044383,120]
[393117447,1762277656383,151.0,0.00043835,120]
[393117449,1762277656425,151.0,0.00043835,120]
[393117451,1762277656460,151.0,0.00044383,120]
[393117453,1762277656497,151.0,0.00044931,120]
[393117455,1762277656530,151.0,0.00045,120]
[393117457,1762277656568,151.0,0.00043835,120]
[393117459,1762277656603,151.0,0.00043835,120]
[393117462,1762277656639,151.0,0.00044383,120]
[393117464,1762277656674,151.0,0.00044931,120]
[393117466,1762277656710,151.0,0.00045,120]
[393117470,1762277656839,151.0,0.00043835,120]
[393117472,1762277656873,151.0,0.00043835,120]
[393117475,1762277656957,151.0,0.00044383,120]
[393117478,1762277657008,480.0,0.00043835,120]
[393117480,1762277657043,151.0,0.00044931,120]
[393117482,1762277657086,500.0,0.00043835,120]
[393117484,1762277657123,151.0,0.00045,120]
[393117485,1762277657166,151.0,0.00043835,120]
[393117486,1762277657205,500.0,0.00044383,120]
[393117487,1762277657245,151.0,0.00043835,120]
[393117488,1762277657290,500.0,0.00044931,120]
[393117489,1762277657428,151.0,0.00043835,120]
[393117490,1762277657466,151.0,0.00043835,120]
[393117493,1762277657516,513.77,0.00045479,120]
[393117495,1762277657553,175.446678,0.00044383,120]
[393117497,1762277657612,250.9834733,0.000376,120]
[393117500,1762277657662,250.9834733,0.000387,120]
[393117502,1762277657697,486.72528085,0.00043835,120]
[393117504,1762277657738,250.9834733,0.000399,120]
[393117507,1762277657795,250.9834733,0.000411,120]
[393117509,1762277657841,250.9834733,0.000423,120]
[393117512,1762277657906,151.0,0.00044383,120]
[393117516,1762277658052,211.759717,0.00043835,120]
[393117519,1762277658144,153.684947,0.00037642,30]
[393117522,1762277658184,151.0,0.00037642,31]
[393117524,1762277658224,151.0,0.00043835,120]
[393117528,1762277658366,500.0,0.00043835,120]
[393117530,1762277658413,151.0,0.00043835,120]
[393117532,1762277658448,205.339599,0.00044383,120]
[393117538,1762277658616,151.0,0.00043835,120]
[393117540,1762277658661,151.0,0.00043835,120]
[393117542,1762277658700,1528.644278,0.00043835,120]
[393117544,1762277658739,151.0,0.00044383,120]
[393117547,1762277658780,1528.644278,0.00043835,120]
[393117549,1762277658838,151.0,0.00044931,120]
[393117552,1762277658876,1528.644278,0.00044383,120]
[393117554,1762277658911,151.0,0.00045,120]
[393117556,1762277658946,1528.644278,0.00044931,120]
[393117558,1762277658981,1528.644278,0.00045,120]
[393117560,1762277659017,1528.644278,0.00043835,120]
[393117562,1762277659060,151.0,0.00043835,120]
[393117565,1762277659099,1528.644278,0.00043835,120]
[393117573,1762277659348,1528.644278,0.00044383,120]
[393117579,1762277659536,500.0,0.00043835,120]
[393117586,1762277659732,1528.644278,0.00044931,120]
[393117589,1762277659776,500.0,0.00044383,120]
[393117592,1762277659857,151.0,0.00045444,120]
[393117599,1762277660042,275.99208971,0.00044931,120]
[393117605,1762277660229,1528.644278,0.00045,120]
[393117610,1762277660356,700.0,0.000438,60]
[393117612,1762277660393,151.0,0.00043835,120]
[393117615,1762277660448,500.0,0.00043835,120]
[393117625,1762277660708,1528.644278,0.00043835,120]
[393117632,1762277660911,700.0,0.00044348,60]
[393117635,1762277660969,151.0,0.00044383,120]
[393117638,1762277661023,1528.644278,0.00043835,120]
[393117643,1762277661386,1528.644278,0.00044383,120]
[393117646,1762277661432,151.0,0.00044931,120]
[393117649,1762277661508,700.0,0.00044896,60]
[393117671,1762277662184,1528.644278,0.00044931,120]
[393117673,1762277662223,700.0,0.00045444,60]
[393117676,1762277662308,163.276226,0.00045,120]
[393117691,1762277662773,700.0,0.00045992,60]
[393117699,1762277662989,1528.644278,0.00045,120]
[393117710,1762277663333,700.0,0.0004654,60]
[393117712,1762277663383,1528.644278,0.00043835,120]
[393117717,1762277663541,211.759717,0.00044383,120]
[393117723,1762277663709,1528.644278,0.00043835,120]
[393117728,1762277663854,211.759717,0.00044931,120]
[393117739,1762277664253,1528.644278,0.00044383,120]
[393117743,1762277664359,211.759717,0.00045,120]
[393117753,1762277664666,1528.644278,0.00044931,120]
[393117759,1762277664846,211.759717,0.00043835,120]
[393117763,1762277665143,1528.64427,0.00045,120]
[393117772,1762277665479,313.7719161,0.00043835,120]
[393117781,1762277665854,211.759717,0.00043835,120]
[393117790,1762277666195,211.759717,0.00044383,120]
[393117803,1762277666598,211.759717,0.00044931,120]
[393117820,1762277667173,211.759717,0.00045,120]
[393117845,1762277668096,211.759717,0.00043835,120]
[393117856,1762277668474,211.759717,0.00043835,120]
[393117864,1762277668707,211.759717,0.00044383,120]
[393117869,1762277668849,500.0,0.00043835,120]
[393117873,1762277668959,151.0,0.00043835,120]
[393117874,1762277668996,211.759717,0.00044931,120]
[393117875,1762277669110,500.0,0.00044383,120]
[393117879,1762277669303,211.759717,0.00045,120]
[393117882,1762277669357,201.52510329,0.00044931,120]
[393117892,1762277669681,211.759717,0.00043835,120]
[393117899,1762277669859,157.42855,0.00044383,120]
[393117901,1762277669894,500.0,0.00043835,120]
[393117907,1762277670077,211.759717,0.00043835,120]
[393117909,1762277670126,500.0,0.00044383,120]
[393117917,1762277670372,500.0,0.00044931,120]
[393117925,1762277670586,211.759717,0.00044383,120]
[393117927,1762277670622,500.0,0.00045479,120]
[393117936,1762277670863,500.0,0.00046027,120]
[393117938,1762277670900,500.0,0.00043835,120]
[393117940,1762277670937,219.09218861,0.00043835,120]
[393117942,1762277670974,211.759717,0.00044931,120]
[393117946,1762277671051,576.250798,0.00037642,31]
[393117949,1762277671129,500.0,0.00044383,120]
[393117951,1762277671166,500.0,0.00046575,120]
[393117955,1762277671293,211.75971,0.00045,120]
[393117959,1762277671375,500.0,0.00044931,120]
[393117961,1762277671419,576.250798,0.00044758,120]
[393117968,1762277671621,500.0,0.00045479,120]
[393117972,1762277671730,576.250798,0.00046027,120]
[393117976,1762277671857,431.55418017,0.00046027,120]
[393118004,1762277672947,576.250798,0.00037642,31]
[393118012,1762277673351,576.250798,0.00044758,120]
[393118022,1762277673710,576.250798,0.00046027,120]
[393118042,1762277674376,500.0,0.00043835,120]
[393118044,1762277674417,284.58,0.000376,30]
[393118054,1762277674722,284.58,0.000397,30]
[393118056,1762277674758,500.0,0.00044383,120]
[393118058,1762277674805,151.0,0.00037642,31]
[393118061,1762277674858,500.0,0.00037642,120]
[393118066,1762277675027,151.0,0.00043835,120]
[393118069,1762277675076,284.58,0.000442,30]
[393118071,1762277675129,151.0,0.00043835,120]
[393118073,1762277675167,576.250798,0.00037642,31]
[393118083,1762277675512,576.250798,0.00044758,120]
[393118085,1762277675551,151.0,0.00043835,120]
[393118096,1762277675888,151.0,0.00044383,120]
[393118098,1762277675928,576.250798,0.00046027,120]
[393118123,1762277677079,576.250798,0.00037642,31]
[393118128,1762277677561,576.250798,0.00044758,120]
[393118129,1762277677605,150.0,0.00015788,2]
[393118137,1762277678022,150.0,0.00017224,2]
[393118139,1762277678083,576.250798,0.00046027,120]
[393118158,1762277679398,500.0,0.00043835,120]
[393118163,1762277679625,500.0,0.00044383,120]
[393118172,1762277680100,500.0,0.00044931,120]
[393118177,1762277680359,500.0,0.00045479,120]
[393118182,1762277680622,500.0,0.00046027,120]
[393118188,1762277680926,381.91231201,0.00043835,120]
[393118190,1762277680988,500.0,0.00046575,120]
[393118192,1762277681051,520.679524,0.00037642,31]
[393118198,1762277681407,520.679524,0.00044758,120]
[393118200,1762277681465,1102.76,0.00043835,40]
[393118204,1762277681687,1102.76,0.00044383,40]
[393118207,1762277681817,151.0,0.00037642,31]
[393118210,1762277681931,1102.76,0.00044931,40]
[393118213,1762277682072,520.679524,0.00046027,120]
[393118215,1762277682150,151.0,0.00044758,120]
[393118217,1762277682224,1102.76,0.00045479,40]
[393118219,1762277682294,500.0,0.00043835,120]
[393118222,1762277682412,1102.76,0.00046027,40]
[393118225,1762277682516,500.0,0.00044383,120]
[393118228,1762277682653,1102.76,0.00046575,40]
[393118231,1762277682741,151.0,0.00046027,120]
[393118233,1762277682800,500.0,0.00044931,120]
[393118238,1762277683013,500.0,0.00045479,120]
[393118244,1762277683343,500.0,0.00046027,120]
[393118247,1762277683500,500.0,0.00046575,120]
[393118254,1762277683888,520.679524,0.00037642,31]
[393118257,1762277683984,500.0,0.00043835,120]
[393118260,1762277684457,500.0,0.00044383,120]
[393118262,1762277684528,520.679524,0.00044758,120]
[393118266,1762277684651,500.0,0.00044931,120]
[393118267,1762277684717,520.679524,0.00046027,120]
[393118272,1762277684897,500.0,0.00045479,120]
[393118275,1762277685066,151.0,0.00037642,31]
[393118278,1762277685158,500.0,0.00046027,120]
[393118282,1762277685364,151.0,0.00044758,120]
[393118284,1762277685439,500.0,0.00046575,120]
[393118291,1762277685889,151.0,0.00046027,120]
[393118321,1762277687792,500.0,0.00043835,120]
[393118325,1762277688022,151.822505,0.00037642,31]
[393118327,1762277688094,500.0,0.00044383,120]
[393118332,1762277688357,500.0,0.00044931,120]
[393118337,1762277688596,500.0,0.00045479,120]
[393118341,1762277688842,500.0,0.00046027,120]
[393118346,1762277689088,500.0,0.00046575,120]
[393118417,1762277693889,500.0,0.00043835,120]
[393118421,1762277694139,612.17280149,0.00044383,120]
[393118428,1762277694527,500.0,0.00043835,120]
[393118432,1762277694735,500.0,0.00044383,120]
[393118437,1762277694967,500.0,0.00044931,120]
[393118442,1762277695212,500.0,0.00045479,120]
[393118447,1762277695481,500.0,0.00046027,120]
[393118453,1762277695755,500.0,0.00046575,120]
[393118466,1762277696668,500.0,0.00043835,120]
[393118471,1762277696926,500.0,0.00044383,120]
[393118502,1762277698991,502.97,0.00043835,120]
[393118507,1762277699212,520.679524,0.00037642,31]
[393118508,1762277699282,502.97,0.00044383,120]
[393118513,1762277699477,502.97,0.00044931,120]
[393118518,1762277699723,502.97,0.00045479,120]
[393118520,1762277699786,520.679524,0.00044758,120]
[393118524,1762277699965,502.97,0.00046027,120]
[393118529,1762277700236,502.97,0.00046575,120]
[393118533,1762277700506,480.0,0.00043835,120]
[393118535,1762277700578,520.679524,0.00046027,120]
[393118548,1762277701294,151.0,0.00037642,31]
[393118577,1762277703106,520.679524,0.00037642,31]
[393118579,1762277703185,27461.0,0.0003687,30]
[393118587,1762277703734,500.0,0.00043835,120]
[393118591,1762277703918,520.679524,0.00044758,120]
[393118594,1762277703997,387.298716,0.00044383,120]
[393118608,1762277704976,520.679524,0.00046027,120]
[393118622,1762277706078,500.0,0.00043835,120]
[393118627,1762277706320,500.0,0.00044383,120]
[393118632,1762277706612,500.0,0.00044931,120]
[393118636,1762277706858,500.0,0.00045479,120]
[393118640,1762277707010,151.0,0.00045,120]
[393118642,1762277707112,500.0,0.00046027,120]
[393118647,1762277707399,151.0,0.00043835,120]
[393118649,1762277707474,500.0,0.00046575,120]
[393118653,1762277707647,500.0,0.00043835,120]
[393118654,1762277707721,251.55406777,0.00043835,120]
[393118656,1762277707796,606.92,0.00043835,120]
[393118659,1762277707869,500.0,0.00044383,120]
[393118661,1762277707943,606.92,0.00044383,120]
[393118664,1762277708145,500.0,0.00044931,120]
[393118667,1762277708262,606.92,0.00044931,120]
[393118670,1762277708411,500.0,0.00045479,120]
[393118673,1762277708550,606.92,0.00045479,120]
[393118675,1762277708633,500.0,0.00046027,120]
[393118677,1762277708707,151.0,0.00044758,120]
[393118680,1762277708796,606.92,0.00046027,120]
[393118682,1762277708867,500.0,0.00046575,120]
[393118685,1762277709051,606.92,0.00046575,120]
[393118699,1762277709912,172.016124,0.00037642,31]
[393118704,1762277710235,172.016124,0.00044758,120]
[393118710,1762277710562,172.016124,0.00046027,120]
[393118719,1762277711138,151.0,0.00037642,30]
[393118725,1762277711481,172.016124,0.00037642,31]
[393118726,1762277711558,151.0,0.00044758,30]
[393118729,1762277711644,500.0,0.00043835,120]
[393118731,1762277711774,172.016124,0.00044758,120]
[393118733,1762277711853,151.0,0.00046027,30]
[393118735,1762277711928,500.0,0.00044383,120]
[393118738,1762277712057,172.016124,0.00046027,120]
[393118740,1762277712134,500.0,0.00044931,120]
[393118745,1762277712414,626.55196117,0.00045479,120]
[393118750,1762277712964,172.016124,0.00037642,31]
[393118755,1762277713256,172.016124,0.00044758,120]
[393118758,1762277713410,151.0,0.00037642,30]
[393118761,1762277713484,500.0,0.00043835,120]
[393118763,1762277713557,172.016124,0.00046027,120]
[393118765,1762277713630,151.0,0.00044758,30]
[393118767,1762277713726,500.0,0.00044383,120]
[393118770,1762277713845,151.0,0.00046027,30]
[393118772,1762277713957,500.0,0.00044931,120]
[393118777,1762277714190,500.0,0.00045479,120]
[393118781,1762277714401,172.016124,0.00037642,31]
[393118783,1762277714478,592.32,0.00046027,120]
[393118787,1762277714690,172.016124,0.00044758,120]
[393118790,1762277714814,160.045667,0.00037642,30]
[393118793,1762277714994,172.016124,0.00046027,120]
[393118810,1762277716193,500.0,0.00043835,120]
[393118815,1762277716435,435.00875647,0.00044383,120]
[393118820,1762277716735,528.42,0.00043835,60]
[393118825,1762277717009,528.42,0.00044383,60]
[393118829,1762277717252,528.42,0.00044931,60]
[393118834,1762277717513,528.42,0.00045479,60]
[393118838,1762277717792,528.42,0.00046027,60]
[393118845,1762277718195,528.42,0.00046575,60]
[393118892,1762277721685,151.0,0.00037642,31]
[393118899,1762277722114,208.396469,0.00044931,120]
[393118902,1762277722246,800.64,0.00043835,120]
[393118906,1762277722415,151.0,0.00037642,31]
[393118908,1762277722475,800.64,0.00044383,120]
[393118912,1762277722680,500.0,0.00043835,120]
[393118913,1762277722757,151.0,0.00044931,60]
[393118916,1762277722833,800.64,0.00044931,120]
[393118918,1762277722909,500.0,0.00044383,120]
[393118921,1762277723050,800.64,0.00045479,120]
[393118923,1762277723163,500.0,0.00044931,120]
[393118925,1762277723256,800.64,0.00046027,120]
[393118928,1762277723382,500.0,0.00045479,120]
[393118931,1762277723511,800.64,0.00046575,120]
[393118934,1762277723617,500.0,0.00046027,120]
[393118938,1762277723882,500.0,0.00046575,120]
[393118946,1762277724328,-1898.07,0.000468,120]
[393118947,1762277724410,-600.0,0.0004688,120]
[393118950,1762277724488,-1000.0,0.00047,120]
[393118952,1762277724564,-439.24479182,0.00047,30]
[393118953,1762277724638,-400.0,0.00047,120]
[393118956,1762277724713,-2000.0,0.00047,120]
[393118958,1762277724790,-153.0,0.00047041,30]
[393118959,1762277724869,-1183.1908746,0.00047041,30]
[393118961,1762277724945,-190.8362626,0.00047041,30]
[393118964,1762277725020,-153.0,0.00047041,30]
[393118965,1762277725099,-299.6635978,0.00047041,30]
[393118967,1762277725178,-299.6635978,0.00047041,30]
[393118969,1762277725253,-190.8362626,0.00047041,30]
[393118972,1762277725336,-153.0,0.00047041,30]
[393118973,1762277725414,-299.0550086,0.00047041,30]
[393118975,1762277725489,-190.4597046,0.00047041,30]
[393118977,1762277725565,-153.0,0.00047041,30]
[393118979,1762277725641,-700.0,0.00047088,60]
[393118981,1762277725718,-284.58,0.000471,30]
[393118984,1762277725795,-500.0,0.00047123,120]
[393118986,1762277725872,-587.99894472,0.00047123,120]
[393118987,1762277725947,-151.0,0.00047123,120]
[393118989,1762277726021,-242.1985,0.00047123,120]
[393118992,1762277726099,-395.44735597,0.00047123,120]
[393118993,1762277726175,-221.128998,0.00047123,120]
[393118996,1762277726252,-221.128998,0.00047123,120]
[393118997,1762277726331,-221.128998,0.00047123,120]
[393118999,1762277726409,-221.128998,0.00047123,120]
[393119001,1762277726477,-500.0,0.00047123,120]
[393119002,1762277726544,-151.0,0.00047123,120]
[393119003,1762277726611,-3208.33,0.00047123,120]
[393119005,1762277726678,-151.0,0.00047123,120]
[393119007,1762277726743,-157.981188,0.00047123,120]
[393119009,1762277726810,-500.0,0.00047123,120]
[393119011,1762277726876,-227.666164,0.00047123,120]
[393119013,1762277726942,-274.564284,0.00047123,120]
[393119015,1762277727004,-151.0,0.00047123,120]
[393119017,1762277727064,-151.0,0.00047123,120]
[393119019,1762277727125,-151.0,0.00047123,120]
[393119020,1762277727201,-500.0,0.00047123,120]
[393119024,1762277727345,-203.914268,0.00047123,120]
[393119026,1762277727429,-151.0,0.00047123,120]
[393119027,1762277727507,-500.0,0.00047123,120]
[393119030,1762277727582,-618.28,0.00047123,120]
[393119031,1762277727662,-500.0,0.00047123,120]
[393119033,1762277727738,-500.0,0.00047123,120]
[393119036,1762277727813,-500.0,0.00047123,120]
[393119038,1762277727891,-500.0,0.00047123,120]
[393119039,1762277727969,-500.0,0.00047123,120]
[393119041,1762277728046,-500.0,0.00047123,120]
[393119043,1762277728124,-735.65,0.00047123,120]
[393119045,1762277728198,-1324.79,0.00047123,120]
[393119047,1762277728275,-500.0,0.00047123,120]
[393119050,1762277728357,-207.25735261,0.00047123,120]
[393119051,1762277728434,-258.18362847,0.00047123,120]
[393119053,1762277728510,-500.0,0.00047123,120]
[393119056,1762277728588,-856.54,0.00047123,120]
[393119058,1762277728666,-500.0,0.00047123,120]
[393119060,1762277728744,-384.13330415,0.00047123,120]
[393119061,1762277728821,-1428.27,0.00047123,120]
[393119064,1762277728901,-500.0,0.00047123,120]
[393119066,1762277728982,-500.0,0.00047123,120]
[393119068,1762277729060,-1374.06,0.00047123,120]
[393119069,1762277729139,-769.28,0.00047123,120]
[393119072,1762277729217,-11325.38,0.00047123,120]
[393119073,1762277729294,-3342.65,0.00047123,120]
[393119075,1762277729371,-500.0,0.00047123,120]
[393119077,1762277729446,-500.0,0.00047123,120]
[393119079,1762277729519,-500.0,0.00047123,120]